bitfinex-derivatives/quotes_ETHF0:USTF0_20250411
["timestamp","ask_amount","ask_price","bid_price","bid_amount"]
[1744396843978,3.34812,1571.2,1571.1,1.27360259]
[1744396844381,3.34812,1571.2,1571.1,2.59e-06]
[1744396844975,2.0746,1571.2,1571.1,1.27360259]
[1744396845480,3.34812,1571.2,1571.1,1.27360259]
[1744396846481,3.34812,1571.2,1571.1,2.59e-06]
[1744396846781,1.27352,1571.2,1571.1,1.27355259]
[1744396847077,2.59e-06,1571.3,1571.2,1.27352]
[1744396847282,2.59e-06,1571.3,1571.2,9.52632]
[1744396847481,2.59e-06,1571.3,1571.2,13.21882]
[1744396851983,2.59e-06,1571.3,1571.2,13.14493536]
[1744396852482,1.27344259,1571.3,1571.2,13.14493536]
[1744396852694,3.32454259,1571.3,1571.2,6.8956]
[1744396852876,3.32454259,1571.3,1571.2,3.12412]
[1744396853076,1.27352,1571.2,1571.1,2.18230259]
[1744396853377,3.32462,1571.2,1571.1,2.59e-06]
[1744396859382,8.32462,1571.2,1571.1,2.59e-06]
[1744396859586,13.36462,1571.2,1571.1,2.59e-06]
[1744396860085,1.27392,1570.7,1570.6,5.91646751]
[1744396860286,1.274,1570.6,1570.5,18.25935827]
[1744396860588,3.3952,1570.6,1570.5,13.16074827]
[1744396860785,1.27409,1570.5,1570.4,5.52823827]
[1744396861081,4.48189,1570.5,1570.4,5.52823827]
[1744396861284,9.48189,1570.5,1570.4,3.65691827]
[1744396861483,9.48189,1570.5,1570.4,0.07800827]
[1744396861683,9.48189,1570.5,1570.4,8.27e-06]
[1744396862487,1.27417,1570.4,1570.3,40.63198165]
[1744396862689,6.31517,1570.4,1570.3,37.55422165]
[1744396862889,11.31517,1570.4,1570.3,35.87108165]
[1744396863392,1.27441,1570.1,1570.0,23.64880207]
[1744396863587,14.52321,1570.1,1570.0,20.18246207]
[1744396863884,14.52321,1570.1,1570.0,18.58496207]
[1744396864093,14.52321,1570.1,1570.0,17.00985207]
[1744396864393,14.52321,1570.1,1570.0,15.37166207]
[1744396864582,14.52321,1570.1,1570.0,12.43387207]
[1744396864890,1.27474,1569.7,1569.6,1.9935]
[1744396865190,4.48254,1569.7,1569.6,1.9935]
[1744396865382,3.2078,1569.7,1569.6,13.40969932]
[1744396865586,1.27461,1569.9,1569.8,1.27464]
[1744396865786,1.27454,1570.0,1569.9,1.27457]
[1744396865988,1.27454,1570.0,1569.7,5.14137932]
[1744396865989,5.3621,1570.3,1570.0,1.27449]
[1744396866191,1.2744,1570.2,1570.1,1.27441]
[1744396866493,1.27443,1570.1,1570.0,1.27446]
[1744396866892,1.27443,1570.1,1570.0,6.41583932]
[1744396867694,1.27443,1570.1,1570.0,5.14137932]
[1744396868592,4.48223,1570.1,1570.0,5.14137932]
[1744396871796,1.27457,1569.9,1569.8,3.6308]
[1744396872091,1.27457,1569.9,1569.8,1.7903]
[1744396872291,6.39426,1569.9,1569.5,2.97814]
[1744396872490,1.27482,1569.6,1569.5,4.77724]
[1744396872695,1.27482,1569.6,1569.5,3.5024]
[1744396873005,0.00953259,1569.7,1569.6,1.27482]
[1744396873496,0.00953259,1569.7,1569.6,6.27482]
[1744396873691,1.28427259,1569.7,1569.6,6.27482]
[1744396873987,0.00953259,1569.7,1569.6,6.27482]
[1744396874193,0.00953259,1569.7,1569.6,1.27482]
[1744396874896,0.00953259,1569.7,1569.6,6.27482]
[1744396875496,1.28427259,1569.7,1569.6,6.27482]
[1744396875795,1.28427259,1569.7,1569.6,1.27482]
[1744396876095,1.27482,1569.6,1569.5,4.77725]
[1744396876489,4.49208259,1569.7,1569.5,3.5024]
[1744396876690,0.00953259,1569.7,1569.6,1.27482]
[1744396877690,0.00953259,1569.7,1569.6,6.27482]
[1744396878492,0.00953259,1569.7,1569.6,8.25752]
[1744396879291,4.8764427,1570.3,1570.2,1.27433]
[1744396879689,1.27421,1570.4,1570.1,3.7405]
[1744396879690,4.8764427,1570.4,1570.1,3.7405]
[1744396880000,4.48205,1570.3,1570.2,2.1649]
[1744396880301,1.27425,1570.3,1570.2,2.1649]
[1744396880502,4.48205,1570.3,1570.2,2.1649]
[1744396881195,6.64205,1570.3,1570.2,2.1649]
[1744396881798,4.48205,1570.3,1570.2,2.1649]
[1744396882102,4.48205,1570.3,1570.1,3.04174259]
[1744396882103,1.27433,1570.2,1570.1,0.00953259]
[1744396882706,6.27433,1570.2,1570.1,0.00953259]
[1744396883001,8.33363,1570.2,1570.1,0.00953259]
[1744396883498,8.33363,1570.2,1570.1,2.59e-06]
[1744396884589,1.27498,1569.4,1569.3,6.84409]
[1744396884794,1.27498,1569.4,1569.3,4.75519]
[1744396884997,4.48276,1569.5,1569.4,1.27498]
[1744396886093,1.27498,1569.4,1569.3,3.4802]
[1744396887002,1.27498,1569.4,1569.3,4.75526]
[1744396888099,1.27498,1569.4,1569.3,3.4802]
[1744396889290,3.35358,1569.4,1569.3,3.4802]
[1744396890004,1.27522,1569.1,1569.0,6.31925]
[1744396890303,1.27522,1569.1,1569.0,3.523]
[1744396890603,4.48302,1569.1,1569.0,3.523]
[1744396890805,1.27555,1568.7,1568.6,5.039]
[1744396891001,1.2755,1568.8,1568.7,1.27549]
[1744396891196,1.28503259,1568.8,1568.7,1.27549]
[1744396891395,0.00953259,1568.8,1568.7,1.27549]
[1744396891601,0.00953259,1568.8,1568.7,6.27549]
[1744396891904,0.00953259,1568.8,1568.7,1.27549]
[1744396892205,0.00953259,1568.8,1568.7,8.03169]
[1744396892897,1.27509,1569.3,1569.2,1.27514]
[1744396893098,6.39491,1569.6,1569.3,1.27502]
[1744396893099,1.27502,1569.4,1569.3,1.27502]
[1744396893404,1.27482,1569.6,1569.3,1.27506]
[1744396893699,8.58950405,1569.6,1569.5,1.27484]
[1744396894400,7.31466405,1569.6,1569.5,1.27484]
[1744396894714,1.2749,1569.5,1569.4,1.28445259]
[1744396895107,7.31466405,1569.6,1569.5,1.2749]
[1744396896104,7.31466405,1569.6,1569.5,3.15]
[1744396896402,8.58948405,1569.6,1569.5,3.15]
[1744396896598,8.58948405,1569.6,1569.5,1.8751]
[1744396897100,1.27482,1569.6,1569.5,1.8751]
[1744396897604,3.28792,1569.6,1569.5,1.8751]
[1744396897906,1.2749,1569.5,1569.4,0.00953259]
[1744396898105,4.4827,1569.5,1569.4,0.00953259]
[1744396898403,4.4827,1569.5,1569.4,2.19443259]
[1744396903111,1.2749,1569.5,1569.4,2.19443259]
[1744396903407,4.4827,1569.5,1569.4,2.19443259]
[1744396904596,9.4827,1569.5,1569.4,0.00953259]
[1744396905204,9.4827,1569.5,1569.4,2.59e-06]
[1744396905814,19.8351915,1569.5,1569.4,2.59e-06]
[1744396909216,24.80436108,1569.5,1569.4,2.59e-06]
[1744396909515,1.27514,1569.2,1569.1,2.1373]
[1744396909725,4.48294,1569.2,1569.1,2.1373]
[1744396911518,4.48294,1569.2,1569.1,3.41252]
[1744396911917,1.27514,1569.2,1569.1,3.41252]
[1744396912621,4.48294,1569.2,1569.1,3.41252]
[1744396913020,4.48294,1569.2,1569.1,2.1373]
[1744396913721,6.58094,1569.2,1569.1,2.1373]
[1744396914219,4.48294,1569.2,1569.1,2.1373]
[1744396915121,6.58094,1569.2,1569.1,2.1373]
[1744396915424,1.2753,1569.0,1568.9,1.7643]
[1744396915622,4.4831,1569.0,1568.9,1.7643]
[1744396916619,4.4831,1569.0,1568.9,3.03969]
[1744396916817,4.4831,1569.0,1568.9,5.18949]
[1744396917921,4.4831,1569.0,1568.9,3.9141]
[1744396919021,4.4831,1569.0,1568.9,5.18949]
[1744396919617,9.38835503,1569.0,1568.9,5.18949]
[1744396920310,8.11305503,1569.0,1568.9,5.18949]
[1744396920515,9.38835503,1569.0,1568.9,5.18949]
[1744396920717,4.90525503,1569.0,1568.9,10.18949]
[1744396920916,2.07395503,1569.0,1568.9,15.22549]
[1744396921920,7.34946985,1569.1,1569.0,1.2753]
[1744396922114,13.00709314,1569.2,1569.1,1.27522]
[1744396922319,0.83309314,1569.2,1569.1,1.27522]
[1744396922525,12.24911642,1569.4,1569.3,1.27506]
[1744396922725,12.24911642,1569.4,1569.3,6.31106]
[1744396922922,14.60615852,1569.7,1569.6,1.27482]
[1744396923117,0.00953259,1569.7,1569.6,1.27482]
[1744396924836,6.40423259,1569.7,1569.2,6.39565]
[1744396925041,1.27493,1569.5,1569.4,1.27493]
[1744396925238,3.21733259,1569.7,1569.6,1.27482]
[1744396925429,0.00953259,1569.7,1569.6,1.27482]
[1744396925742,0.00953259,1569.7,1569.5,3.7943]
[1744396925743,1.27482,1569.6,1569.5,3.7943]
[1744396925938,6.64332,1569.6,1569.5,3.3116]
[1744396926237,0.00953259,1569.7,1569.6,1.27482]
[1744396926538,0.00953259,1569.7,1569.6,4.84972]
[1744396926840,1.28427259,1569.7,1569.6,1.7576]
[1744396927040,3.44497259,1569.7,1569.6,1.7576]
[1744396927239,1.28427259,1569.7,1569.6,3.03242]
[1744396928133,0.00953259,1569.7,1569.6,3.03242]
[1744396929147,0.00953259,1569.7,1569.6,6.24022]
[1744396929352,0.00953259,1569.7,1569.6,3.03242]
[1744396931450,0.00953259,1569.7,1569.6,1.7576]
[1744396931653,8.21733259,1569.7,1569.3,1.8173]
[1744396931849,1.27497,1569.5,1569.4,3.26993]
[1744396932551,3.27868,1569.6,1569.5,1.2749]
[1744396934557,1.2749,1569.5,1569.4,1.995]
[1744396934744,1.27498,1569.4,1569.3,1.27499]
[1744396935150,3.27388,1569.4,1569.3,3.37289]
[1744396936457,6.19007,1569.5,1569.4,1.27498]
[1744396936659,6.19007,1569.5,1569.4,3.37288]
[1744396936857,6.914,1569.5,1569.1,3.5562]
[1744396937153,3.2078,1569.3,1569.2,1.2751]
[1744396937557,4.48286,1569.3,1569.2,3.3642]
[1744396940563,4.48286,1569.3,1569.2,1.2751]
[1744396940752,1.27554,1568.8,1568.7,1.2755]
[1744396941364,1.27555,1568.7,1568.6,1.27563]
[1744396941661,6.36505,1568.7,1568.6,1.27563]
[1744396941854,3.15731,1568.7,1568.5,2.1051]
[1744396942059,1.8817,1568.7,1568.6,1.27563]
[1744396942259,5.08673259,1568.9,1568.5,2.1051]
[1744396942461,8.34652259,1568.9,1568.8,1.27547]
[1744396943348,8.34652259,1568.9,1568.7,2.1051]
[1744396943349,7.07113259,1568.9,1568.7,2.1051]
[1744396943554,2.0708,1568.8,1568.5,2.0367]
[1744396943763,3.34634,1568.8,1568.7,1.27555]
[1744396944053,3.34633,1568.8,1568.7,1.27555]
[1744396944958,2.0708,1568.8,1568.7,1.27555]
[1744396945761,3.34627,1568.8,1568.7,1.27555]
[1744396946154,2.0708,1568.8,1568.7,1.27555]
[1744396946457,3.34627,1568.8,1568.7,1.27555]
[1744396946658,2.0708,1568.8,1568.7,1.27555]
[1744396947057,3.34627,1568.8,1568.7,1.27555]
[1744396947561,0.00953259,1568.9,1568.8,1.27547]
[1744396947861,1.28492259,1568.9,1568.8,1.27547]
[1744396948056,1.28492259,1568.9,1568.8,3.43397]
[1744396948761,4.49272259,1568.9,1568.8,1.27547]
[1744396948961,4.98163259,1568.9,1568.8,1.27547]
[1744396949258,6.25702259,1568.9,1568.8,3.43397]
[1744396950463,1.77383259,1568.9,1568.8,3.43397]
[1744396950650,3.04922259,1568.9,1568.8,3.43397]
[1744396950857,5.13302259,1568.9,1568.8,3.43397]
[1744396951154,0.00953259,1568.9,1568.8,3.43397]
[1744396952260,3.2078,1569.1,1569.0,1.2753]
[1744396952657,3.2078,1569.1,1569.0,5.3445]
[1744396953261,14.07065794,1569.5,1569.0,5.3445]
[1744396953262,14.07065794,1569.5,1569.4,1.27498]
[1744396953459,17.40595794,1569.5,1569.4,1.27498]
[1744396953856,20.61375794,1569.5,1569.4,3.46438]
[1744396954863,8.3319,1569.5,1569.4,3.46438]
[1744396956564,5.1241,1569.5,1569.4,3.46438]
[1744396956766,1.27498,1569.4,1569.3,1.27501]
[1744396956967,3.30938,1569.4,1569.3,3.26911]
[1744396958477,3.30938,1569.4,1569.3,1.27501]
[1744396958869,2.0344,1569.4,1569.3,1.27501]
[1744396959068,1.27497,1569.5,1569.4,1.27498]
[1744396959561,3.44307,1569.5,1569.4,1.27498]
[1744396959764,1.27498,1569.4,1569.3,3.46039]
[1744396960470,3.44307,1569.5,1569.4,1.27498]
[1744396960767,3.44307,1569.5,1569.4,3.46038]
[1744396962070,3.443,1569.5,1569.4,3.46038]
[1744396962468,3.14691259,1569.6,1569.5,1.2749]
[1744396962668,3.14691259,1569.6,1569.5,3.4408]
[1744396962869,5.19761259,1569.6,1569.5,3.4408]
[1744396963071,1.27499,1569.5,1569.4,3.44084]
[1744396963270,3.32569,1569.5,1569.4,3.44084]
[1744396963580,2.0507,1569.5,1569.4,3.44084]
[1744396964077,3.3256,1569.5,1569.4,3.44084]
[1744396964266,0.00953259,1569.6,1569.5,1.2749]
[1744396964575,0.00953259,1569.6,1569.5,5.2379]
[1744396964769,0.00953259,1569.6,1569.5,7.0749]
[1744396966172,0.00953259,1569.6,1569.5,15.3117]
[1744396966374,9.82602763,1569.8,1569.7,1.27474]
[1744396966867,9.82602763,1569.8,1569.7,3.43104]
[1744396967471,11.10067763,1569.8,1569.7,3.43104]
[1744396967666,11.95872763,1569.8,1569.7,3.43104]
[1744396967866,9.82602763,1569.8,1569.7,3.43104]
[1744396968273,0.00953259,1569.9,1569.8,1.27465]
[1744396968570,0.00953259,1569.9,1569.8,8.30675]
[1744396968766,0.00953259,1569.9,1569.8,10.12645]
[1744396969166,0.00953259,1569.9,1569.8,8.30675]
[1744396969371,0.00953259,1569.9,1569.8,3.27775]
[1744396969576,3.21733259,1569.9,1569.7,0.00953259]
[1744396969778,3.40615,1569.8,1569.7,0.00953259]
[1744396970074,5.22535,1569.8,1569.7,0.00953259]
[1744396970477,5.22535,1569.8,1569.7,1.28427259]
[1744396972571,3.9507,1569.8,1569.7,1.28427259]
[1744396972773,5.22535,1569.8,1569.7,1.28427259]
[1744396973372,3.9507,1569.8,1569.7,1.28427259]
[1744396973678,5.22535,1569.8,1569.7,1.28427259]
[1744396974375,3.9507,1569.8,1569.7,1.28427259]
[1744396974769,3.9507,1569.8,1569.7,3.44287259]
[1744396974973,5.22535,1569.8,1569.7,3.44287259]
[1744396975374,1.74373259,1569.9,1569.8,1.27465]
[1744396975572,1.74373259,1569.9,1569.8,3.43325]
[1744396975973,3.01830259,1569.9,1569.8,3.43325]
[1744396976278,6.22610259,1569.9,1569.8,3.43325]
[1744396976672,3.01830259,1569.9,1569.8,3.43325]
[1744396976873,6.22610259,1569.9,1569.8,3.43325]
[1744396977484,8.35060259,1569.9,1569.8,3.43325]
[1744396978382,7.07603259,1569.9,1569.8,3.43325]
[1744396978579,8.35060259,1569.9,1569.8,3.43325]
[1744396979081,1.27465,1569.8,1569.7,3.13139259]
[1744396979283,3.39915,1569.8,1569.7,3.13139259]
[1744396979483,3.39915,1569.8,1569.7,5.27899259]
[1744396979978,2.1245,1569.8,1569.7,5.27899259]
[1744396980184,3.39915,1569.8,1569.7,5.27899259]
[1744396981877,2.1245,1569.8,1569.7,5.27899259]
[1744396982083,3.39915,1569.8,1569.7,5.27899259]
[1744396982882,2.1245,1569.8,1569.7,5.27899259]
[1744396983089,3.21733259,1569.9,1569.8,1.27465]
[1744396983392,1.28410259,1569.9,1569.8,3.29805]
[1744396983575,4.49190259,1569.9,1569.8,3.29805]
[1744396984080,8.41490259,1569.9,1569.8,1.27465]
[1744396985185,7.14033259,1569.9,1569.8,1.27465]
[1744396985388,0.00953259,1569.9,1569.8,3.29805]
[1744396985584,0.00953259,1569.9,1569.8,8.29805]
[1744396988478,1.28410259,1569.9,1569.8,3.29805]
[1744396988674,1.27465,1569.8,1569.7,0.00953259]
[1744396988889,3.39845,1569.8,1569.7,0.00953259]
[1744396989093,8.39845,1569.8,1569.7,0.00953259]
[1744396989277,3.39845,1569.8,1569.7,0.00953259]
[1744396989784,8.39845,1569.8,1569.7,0.00953259]
[1744396989990,1.27504,1569.4,1569.3,1.27501]
[1744396990191,4.48284,1569.4,1569.3,1.27501]
[1744396990682,4.48284,1569.4,1569.3,3.36831]
[1744396990887,1.27506,1569.3,1569.2,6.7201]
[1744396991088,3.45886,1569.3,1569.2,5.02953259]
[1744396992085,3.45886,1569.3,1569.2,0.00953259]
[1744396992392,3.45886,1569.3,1569.2,1.28467259]
[1744396993391,3.45886,1569.3,1569.2,0.00953259]
[1744396993589,3.45886,1569.3,1569.2,1.28467259]
[1744396994990,3.2078,1569.4,1569.3,1.27506]
[1744396995185,3.2078,1569.4,1569.3,5.25656]
[1744396995390,7.36293825,1569.5,1569.4,1.27498]
[1744396995594,7.36293825,1569.5,1569.4,3.26578]
[1744396995894,7.36293825,1569.5,1569.4,8.26578]
[1744396996698,9.82602763,1569.7,1569.6,1.27482]
[1744396996989,9.82602763,1569.7,1569.6,6.29582]
[1744396997393,9.82602763,1569.7,1569.6,8.11402]
[1744396998097,0.00953259,1569.9,1569.8,1.27465]
[1744396999095,1.28410259,1569.9,1569.8,1.27465]
[1744396999301,5.45360259,1569.9,1569.8,1.27465]
[1744397001498,1.27465,1569.8,1569.7,1.2747]
[1744397001692,6.85075,1569.8,1569.7,1.2747]
[1744397002398,5.5761,1569.8,1569.7,1.2747]
[1744397003104,6.85075,1569.8,1569.7,1.2747]
[1744397006199,1.27487,1569.6,1569.5,1.27482]
[1744397006597,4.48267,1569.6,1569.5,1.27482]
[1744397006793,6.38147,1569.6,1569.5,1.27482]
[1744397007001,5.1066,1569.6,1569.5,1.27482]
[1744397007202,5.1066,1569.6,1569.5,3.65932]
[1744397007502,8.70152,1569.6,1569.5,3.65932]
[1744397008800,7.4267,1569.6,1569.5,3.65932]
[1744397009002,4.48262,1569.6,1569.5,1.27482]
[1744397009209,3.2078,1569.6,1569.5,1.27482]
[1744397009506,4.48262,1569.6,1569.5,1.27482]
[1744397009705,6.88702,1569.6,1569.5,1.27482]
[1744397010202,1.2749,1569.5,1569.4,3.49702]
[1744397010407,1.27498,1569.4,1569.3,1.27498]
[1744397010608,3.19358,1569.4,1569.3,1.27498]
[1744397010800,5.56788,1569.4,1569.3,3.55738]
[1744397011207,4.2929,1569.4,1569.3,3.55738]
[1744397012299,5.56788,1569.4,1569.3,3.55738]
[1744397012508,4.2929,1569.4,1569.3,3.55738]
[1744397012803,5.56788,1569.4,1569.3,3.55738]
[1744397013009,4.2929,1569.4,1569.3,3.55738]
[1744397014611,5.56788,1569.4,1569.3,3.55738]
[1744397016207,4.2929,1569.4,1569.3,3.55738]
[1744397016710,3.23216,1569.5,1569.4,1.27498]
[1744397016916,5.53886,1569.5,1569.4,3.50378]
[1744397017110,1.27506,1569.3,1569.2,0.00953259]
[1744397017306,4.48286,1569.3,1569.2,1.28463259]
[1744397017504,4.48286,1569.3,1569.2,0.00953259]
[1744397017804,8.87826,1569.3,1569.2,0.00953259]
[1744397018206,13.87826,1569.3,1569.2,0.00953259]
[1744397018405,1.27547,1568.9,1568.8,1.27542]
[1744397018807,4.48327,1568.9,1568.8,1.27542]
[1744397019021,1.27547,1568.9,1568.8,1.27542]
[1744397019412,10.71897,1569.1,1568.7,2.2288]
[1744397019413,1.27547,1568.8,1568.7,3.50428]
[1744397019613,4.48327,1568.8,1568.7,3.50428]
[1744397019815,1.27547,1568.8,1568.7,3.50428]
[1744397020014,8.49444259,1569.0,1568.9,1.27539]
[1744397020015,5.30603259,1569.0,1568.9,1.27539]
[1744397020219,3.21733259,1569.0,1568.9,1.27539]
[1744397020621,4.49263259,1569.0,1568.9,3.35669]
[1744397021020,2.25773259,1569.0,1568.9,3.35669]
[1744397021218,3.53303259,1569.0,1568.9,3.35669]
[1744397021422,2.25773259,1569.0,1568.9,3.35669]
[1744397024022,3.53303259,1569.0,1568.9,3.35669]
[1744397024225,0.00953259,1569.0,1568.9,8.35669]
[1744397024413,0.00953259,1569.0,1568.9,15.80149]
[1744397024614,2.59e-06,1569.0,1568.9,15.80149]
[1744397024820,9.82602763,1569.3,1569.2,1.27514]
[1744397025014,9.82602763,1569.4,1569.3,1.27506]
[1744397025228,9.82602763,1569.4,1569.3,10.71486]
[1744397025423,9.82602763,1569.4,1569.3,12.50706]
[1744397029028,12.63622763,1570.0,1569.9,1.27457]
[1744397029332,8.51892763,1570.0,1569.9,1.27457]
[1744397030133,8.51892763,1570.0,1569.9,3.70007]
[1744397032532,9.79341763,1570.0,1569.9,3.70007]
[1744397032727,8.51892763,1570.0,1569.9,3.70007]
[1744397033133,3.59118259,1570.1,1570.0,1.27449]
[1744397034320,2.31673259,1570.1,1569.9,2.4255]
[1744397034525,3.18649,1569.9,1569.4,3.2078]
[1744397034728,1.27475,1569.7,1569.6,1.27475]
[1744397035327,9.4644,1569.8,1569.7,1.27474]
[1744397035636,1.28397259,1570.1,1570.0,1.27449]
[1744397035936,5.59317259,1570.1,1570.0,1.27449]
[1744397036333,1.27449,1570.0,1569.9,3.58231]
[1744397036636,3.49019,1570.0,1569.9,1.27451]
[1744397036831,5.4235,1570.0,1569.5,8.20023]
[1744397037135,5.48075,1569.9,1569.8,1.27464]
[1744397038332,4.2061,1569.9,1569.7,2.3078]
[1744397038536,5.51835,1569.8,1569.7,3.58249]
[1744397039337,5.51835,1569.8,1569.7,1.27469]
[1744397040232,8.72615,1569.8,1569.7,1.27469]
[1744397040539,5.51835,1569.8,1569.7,1.27469]
[1744397041434,8.72615,1569.8,1569.7,1.27469]
[1744397041640,8.72615,1569.8,1569.6,3.50546]
[1744397041641,1.27474,1569.7,1569.6,3.50546]
[1744397041837,1.27488,1569.6,1569.5,1.27484]
[1744397042034,2.3726,1569.7,1569.6,1.27482]
[1744397042343,3.64734,1569.7,1569.6,1.27482]
[1744397042744,2.3726,1569.7,1569.6,1.27482]
[1744397042943,3.64734,1569.7,1569.6,1.27482]
[1744397043743,2.3726,1569.7,1569.6,1.27482]
[1744397043943,3.64734,1569.7,1569.6,1.27482]
[1744397044140,2.3726,1569.7,1569.6,1.27482]
[1744397044344,0.00953259,1570.1,1569.8,1.27465]
[1744397044540,0.00953259,1570.1,1570.0,1.27449]
[1744397044945,0.00953259,1570.1,1570.0,10.42599]
[1744397045147,0.00953259,1570.1,1570.0,5.42599]
[1744397046944,2.40713259,1570.1,1570.0,5.42599]
[1744397047448,3.68154259,1570.1,1570.0,3.49289]
[1744397047648,5.63274259,1570.1,1570.0,3.49289]
[1744397047850,4.35833259,1570.1,1570.0,3.49289]
[1744397048049,0.00953259,1570.1,1570.0,3.49289]
[1744397048246,0.00953259,1570.1,1570.0,5.41329]
[1744397050547,0.00953259,1570.1,1570.0,8.62109]
[1744397052553,0.00953259,1570.1,1570.0,5.41329]
[1744397053048,2.36223259,1570.1,1570.0,5.41329]
[1744397053249,0.00953259,1570.1,1570.0,5.41329]
[1744397053647,0.00953259,1570.1,1570.0,10.41329]
[1744397055752,0.00953259,1570.1,1570.0,5.41329]
[1744397058558,2.59e-06,1570.1,1570.0,5.41329]
[1744397059249,2.59e-06,1570.1,1570.0,10.41329]
[1744397059454,4.92637833,1570.6,1570.5,1.27409]
[1744397059763,4.92637833,1570.6,1570.5,4.48189]
[1744397059955,4.92637833,1570.6,1570.5,7.88629]
[1744397060360,4.92637833,1570.6,1570.5,1.27409]
[1744397060665,7.43567833,1570.6,1570.5,1.27409]
[1744397060960,4.92637833,1570.6,1570.5,6.99729]
[1744397061961,4.92637833,1570.6,1570.5,3.78949]
[1744397062563,8.71997833,1570.6,1570.5,1.27409]
[1744397062865,1.27409,1570.5,1570.4,0.00953259]
[1744397063065,9.15069,1570.5,1570.4,1.28370259]
[1744397063366,5.94289,1570.5,1570.4,1.28370259]
[1744397063567,4.6688,1570.5,1570.4,1.28370259]
[1744397064161,4.6688,1570.5,1570.4,3.66460259]
[1744397065563,5.94289,1570.5,1570.4,3.66460259]
[1744397066080,4.6688,1570.5,1570.4,3.66460259]
[1744397066663,7.8766,1570.5,1570.4,0.00953259]
[1744397066871,9.15069,1570.5,1570.4,0.00953259]
[1744397067064,14.15069,1570.5,1570.4,0.00953259]
[1744397068972,1.27441,1570.1,1570.0,1.27443]
[1744397069776,5.74871,1570.1,1570.0,1.27443]
[1744397070379,4.4743,1570.1,1570.0,1.27443]
[1744397070774,5.74871,1570.1,1570.0,1.27443]
[1744397071479,4.4743,1570.1,1570.0,1.27443]
[1744397071883,4.4743,1570.1,1570.0,3.33033]
[1744397072782,4.48198,1570.4,1570.3,1.27425]
[1744397072978,7.5202,1570.4,1570.3,1.27425]
[1744397073181,8.79437,1570.4,1570.3,1.27425]
[1744397074179,11.29737,1570.4,1570.3,1.27425]
[1744397074683,17.42081254,1570.4,1570.3,1.27425]
[1744397074872,18.69498254,1570.4,1570.3,1.27425]
[1744397076586,1.27427,1570.3,1570.2,1.27425]
[1744397076787,1.27433,1570.2,1570.1,1.27434]
[1744397077086,1.27447,1570.1,1570.0,1.27444]
[1744397077283,5.86297,1570.1,1570.0,1.27444]
[1744397077885,1.27449,1570.0,1569.9,1.28406259]
[1744397078080,8.83799,1570.0,1569.9,0.00953259]
[1744397078282,1.27484,1569.7,1569.6,1.27479]
[1744397079086,3.57964,1569.7,1569.6,1.27479]
[1744397079491,2.3048,1569.7,1569.6,1.27479]
[1744397080080,3.57954,1569.7,1569.6,1.27479]
[1744397080989,2.3048,1569.7,1569.6,1.27479]
[1744397082090,3.57954,1569.7,1569.6,1.27479]
[1744397082482,8.51210443,1569.7,1569.6,1.27479]
[1744397083190,1.27482,1569.6,1569.5,1.28437259]
[1744397083390,9.01242,1569.6,1569.5,1.28437259]
[1744397084485,5.2377,1569.6,1569.5,1.28437259]
[1744397084692,3.2078,1569.6,1569.5,1.28437259]
[1744397084892,4.93256443,1569.7,1569.6,1.27482]
[1744397085190,4.93256443,1569.7,1569.6,3.72062]
[1744397085786,8.74940443,1569.7,1569.6,3.72062]
[1744397085984,8.74940443,1569.7,1569.6,1.27482]
[1744397087391,7.47466443,1569.7,1569.6,1.27482]
[1744397087589,8.74940443,1569.7,1569.6,3.57682]
[1744397088293,8.74940443,1569.7,1569.6,1.27482]
[1744397090497,6.20730443,1569.7,1569.6,3.59812]
[1744397090695,4.93256443,1569.7,1569.6,3.59812]
[1744397091499,6.20730443,1569.7,1569.6,3.59812]
[1744397094702,1.27474,1569.7,1569.6,3.59812]
[1744397094893,16.01226702,1569.8,1569.5,3.45265259]
[1744397095099,6.95952,1569.6,1569.5,0.00953259]
[1744397098608,5.6847,1569.6,1569.5,1.28443259]
[1744397098807,6.95952,1569.6,1569.5,1.28443259]
[1744397099006,5.6847,1569.6,1569.5,3.77533259]
[1744397099304,3.38951,1569.7,1569.5,3.77533259]
[1744397099305,4.93256443,1569.7,1569.6,1.27482]
[1744397099504,4.93256443,1569.7,1569.6,5.76192]
[1744397100306,4.93256443,1569.7,1569.6,15.75792]
[1744397100501,4.93256443,1569.7,1569.6,10.75792]
[1744397100701,6.20730443,1569.7,1569.6,10.75792]
[1744397100901,8.66730443,1569.7,1569.6,10.75792]
[1744397101609,8.66730443,1569.7,1569.6,5.76192]
[1744397101811,8.66730443,1569.7,1569.5,1.28443259]
[1744397101812,1.27482,1569.6,1569.5,1.28438259]
[1744397102006,3.72742,1569.6,1569.5,3.67328259]
[1744397102206,2.4526,1569.6,1569.5,3.67328259]
[1744397102402,7.08616443,1569.7,1569.6,1.27482]
[1744397102712,4.93256443,1569.7,1569.6,3.66372]
[1744397102912,6.20730443,1569.7,1569.6,3.66372]
[1744397103113,4.93256443,1569.7,1569.6,3.66372]
[1744397103811,4.49199259,1569.8,1569.7,1.27474]
[1744397104012,4.49199259,1569.8,1569.7,3.66364]
[1744397106609,1.28419259,1569.8,1569.7,3.66364]
[1744397106805,1.27481,1569.7,1569.6,1.27476]
[1744397107005,5.88221,1569.7,1569.6,1.27476]
[1744397107206,1.27482,1569.6,1569.5,2.42383259]
[1744397107415,9.15902,1569.6,1569.5,2.42383259]
[1744397107712,9.15902,1569.6,1569.5,0.00953259]
[1744397110510,1.27514,1569.2,1569.1,3.64846]
[1744397111104,3.79834,1569.2,1569.1,3.64846]
[1744397111617,1.27522,1569.1,1569.0,6.26224]
[1744397111816,7.00622,1569.1,1569.0,8.67114]
[1744397112119,7.00622,1569.1,1569.0,3.68414]
[1744397112616,3.79842,1569.1,1569.0,3.68414]
[1744397114907,7.00622,1569.1,1569.0,3.68414]
[1744397115315,7.00622,1569.1,1569.0,3.76987153]
[1744397116029,4.92228428,1569.2,1569.1,1.27522]